Workbook

Sheet Sheet1
A1: M/S SANDNAYA SANWARDHAN SANSTHA, NAGPUR
A2: BUDGET 2014 - 15
A4: SR. | B4: DESSCRIPTION | C4: Actual | D4: Up To | E4: Jan. to March | F4: Year ended March - 31
A5: NO. | C5: 2012-13 | D5: 31/12/13 | E5: 2013-14 | F5: 2013-14 | G5: 2014-15
E6: Provisional | F6: Provisional | G6: Budget
A7: 1 | B7: INCOME :
B8: SELF GENERATED | C8: 493182.11 | D8: 633572 | E8: 211191 | F8: =SUM(D8:E8) -> 844763 | G8: 929239
B9: (FEES / SUBSCRIPTION / INTEREST / VOCATIONAL
B10: SURPLUS / COMMUNITY CONT. ETC)
A12: 2 | B12: DONATIONS FROM INDIVIDUALS | C12: 5301897 | D12: 3214596 | E12: 1071532 | F12: =SUM(D12:E12) -> 4286128 | G12: 4714741
B13: A] (DONATIONS WITHIN INDIA & OTHERS)
B14: (BUS DON./GENERAL DON./GULLAK DON
B15: /TRUSTY DON.)
B17: B] DONATION RECD FOR BUS PURCHASE | C17: - | D17: - | E17: - | F17: - | G17: -
A19: 3 | B19: GRANT FROM INDIAN SOURCES :
B20: (TRUSTS / COMPANIES / FOUNDATIONS) | C20: 20000 | D20: 10000 | E20: - | F20: =SUM(D20:E20) -> 10000 | G20: 20000
A22: 4 | B22: BUILDING FUND
A24: 5 | B24: GRANT FROM INTERNATIONAL SOURCES: | C24: 929049 | D24: 61611 | E24: 18395 | F24: 245526 | G24: 300000
B25: (UNDER FCRA)
A27: 6 | B27: DEPRECATION : ADDED BACK | C27: - | D27: - | E27: - | F27: - | G27: -
B29: TOTAL | C29: =SUM(C8:C28) -> 6744128.11 | D29: =SUM(D8:D28) -> 3919779 | E29: =SUM(E8:E28) -> 1301118 | F29: =SUM(D29:E29) -> 5220897 | G29: =SUM(G8:G28) -> 5963980
A30: [B] | B30: EXPENDITURE :
A31: 1 | B31: CAPITAL EXPENDITURE SSS A/C | C31: - | D31: - | E31: - | F31: - | G31: -
B32: [BUTIBORI CONSTRUCTION] FCRA | C32: 48368 | D32: 165094 | E32: 55031 | F32: =SUM(D32:E32) -> 220125 | G32: 242137
B33: CAPITAL ITEMS PURCHASE SSS | C33: 1787471 | D33: 9888 | E33: 3296 | F33: =SUM(D33:E33) -> 13184 | G33: 14502
B34: CCTV CAMERA FCRA | C34: - | D34: - | E34: - | F34: - | G34: -
B35: BUS PURCHASE [ SSS & FCRA ] | C35: - | D35: - | E35: - | F35: - | G35: -
A37: 2 | B37: OFFICE SUPPORT EXPENSES : | C37: 281119 | D37: 224171 | E37: 74724 | F37: =SUM(D37:E37) -> 298895 | G37: 328785
B38: (RENT/ELEC BILL/CORP TAX/WATERBILL/REPAIRS)
A40: 3 | B40: REVENUE EXPENDITURE :
B41: SALARIES & BENIEFITS PF ( HONORARIUM / PF ) | C41: 3125439 | D41: 2796066 | E41: 932022 | F41: =SUM(D41:E41) -> 3728088 | G41: 4100896
B42: STAFF TRAINING
B43: STAFF TRAVELS | C43: 3385 | D43: - | E43: - | F43: - | G43: -
A45: 4 | B45: COMMUNICATION : | C45: 40963 | D45: 41856 | E45: 13952 | F45: =SUM(D45:E45) -> 55808 | G45: 61388
B46: ( POSTAGE / TELEPHONE EXPENSES )
A48: 5 | B48: CONSULTANT FEES ( LEGAL / PROGRAMME ) | C48: 50140 | D48: 41429 | E48: 13809 | F48: =SUM(D48:E48) -> 55238 | G48: 60762
B49: ( ANNUAL DAY CELE. / SPORT CULTURAL EXP.)
A51: 6 | B51: OTHER PROGRAMME EXPENSES
B52: (MESS EXP/BUS EXP/CONVEY EXP/STAT EXP/MISC) | C52: 949404 | D52: 874610 | E52: 291536 | F52: =SUM(D52:E52) -> 1166146 | G52: 1282761
A54: 7 | B54: OTHER NON PROGRAMME EXPENSES
B55: (PARENTS WORKSHOP EXP/STUDENT WELFARE EXP) | C55: 10261 | D55: 12695 | E55: 4232 | F55: =SUM(D55:E55) -> 16927 | G55: 18620
B56: ( STAFF WELFARE EXPENSES
A58: 8 | B58: DEPRECIATION | C58: - | D58: - | E58: - | F58: - | G58: -
B60: TOTAL AMT. | C60: =SUM(C31:C59) -> 6296550 | D60: =SUM(D31:D59) -> 4165809 | E60: =SUM(E31:E59) -> 1388602 | F60: =SUM(D60:E60) -> 5554411 | G60: =SUM(G31:G59) -> 6109851

Sheet Sheet2

Sheet Sheet3
